bitfinex/quotes_ETHUSD_20230405
["timestamp","ask_amount","ask_price","bid_price","bid_amount"]
[1680695287867,5.76728255,1914.0,1913.8,0.1]
[1680695288015,5.76928255,1914.0,1913.8,0.1]
[1680695288218,0.18287,1913.9,1913.8,0.1]
[1680695288438,3.44893981,1913.9,1913.8,0.1]
[1680695288668,3.26606981,1913.9,1913.8,0.1]
[1680695288822,2.63428255,1913.9,1913.8,0.1]
[1680695289322,2.81715255,1913.9,1913.8,0.1]
[1680695292954,2.63428255,1913.9,1913.8,0.1]
[1680695293140,2.81715255,1913.9,1913.8,0.1]
[1680695294436,5.76728255,1913.9,1913.8,0.1]
[1680695294683,6.87955281,1913.9,1913.8,0.1]
[1680695294862,6.69668281,1913.9,1913.8,0.1]
[1680695295847,0.002,1913.9,1913.8,0.1]
[1680695296054,15.1389,1914.4,1913.8,1.022]
[1680695296290,2.63428255,1914.3,1913.8,1.022]
[1680695296467,2.64028255,1914.3,1913.8,1.99]
[1680695296767,2.64028255,1914.3,1913.8,2.2904]
[1680695297097,2.63428255,1914.3,1913.8,2.2904]
[1680695300175,2.63428255,1914.3,1913.8,1.99]
[1680695300366,2.81711255,1914.3,1913.8,1.068]
[1680695300575,0.18284,1914.2,1913.8,1.068]
[1680695300873,3.55628255,1914.3,1913.8,1.068]
[1680695301060,0.35562826,1914.2,1913.8,1.068]
[1680695302550,2.63428255,1914.1,1913.8,1.068]
[1680695308343,3.133,1914.0,1913.8,0.1]
[1680695308552,2.63428255,1913.9,1913.8,0.1]
[1680695308738,3.21101081,1913.9,1913.8,0.1]
[1680695321176,3.135,1914.0,1913.9,0.00214031]
[1680695321328,5.76728255,1914.0,1913.9,0.00214031]
[1680695321529,5.76928255,1914.0,1913.9,0.00214031]
[1680695332601,6.26928255,1914.0,1913.9,0.00214031]
[1680695335704,6.45214255,1914.0,1913.9,0.00214031]
[1680695335906,10.1087868,1914.0,1913.9,0.00214031]
[1680695337894,9.9259268,1914.0,1913.9,0.00214031]
[1680695339126,10.1087868,1914.0,1913.9,0.00214031]
[1680695339631,15.43682285,1914.0,1913.9,0.00214031]
[1680695339815,16.35782285,1914.0,1913.9,0.00214031]
[1680695340415,16.58782285,1914.0,1913.9,0.00214031]
[1680695341525,15.66682285,1914.0,1913.9,0.00214031]
[1680695343025,16.58382285,1914.0,1913.9,0.00214031]
[1680695343532,16.40096285,1914.0,1913.9,0.00214031]
[1680695343919,26.83382285,1914.0,1913.9,0.00214031]
[1680695344117,27.19954285,1914.0,1913.9,0.00214031]
[1680695347719,28.12154285,1914.0,1913.9,0.00214031]
[1680695354051,31.12154285,1914.0,1913.9,0.00214031]
[1680695354356,31.12754285,1914.0,1913.9,0.00214031]
[1680695354644,31.12154285,1914.0,1913.9,0.00214031]
[1680695355633,31.12754285,1914.0,1913.9,0.00214031]
[1680695360742,30.21054285,1914.0,1913.9,0.00214031]
[1680695361252,30.20454285,1914.0,1913.9,0.00214031]
[1680695361675,30.21054285,1914.0,1913.9,0.00214031]
[1680695362332,30.20454285,1914.0,1913.9,0.00214031]
[1680695363236,31.12654285,1914.0,1913.9,0.00214031]
[1680695372256,29.28254285,1914.0,1913.9,0.00214031]
[1680695372657,28.28254285,1914.0,1913.9,0.00214031]
[1680695377701,28.05254285,1914.0,1913.9,0.00214031]
[1680695377902,28.05854285,1914.0,1913.9,0.00214031]
[1680695380615,28.05854285,1914.0,1913.8,0.1]
[1680695380931,14.2781886,1913.9,1913.8,0.1]
[1680695381099,14.2861886,1913.9,1913.8,0.1]
[1680695384632,5.6103186,1913.9,1913.8,0.1]
[1680695384795,5.6063186,1913.9,1913.8,0.1]
[1680695391147,12.73355046,1913.9,1913.8,0.1]
[1680695393264,7.24255046,1913.9,1913.8,0.1]
[1680695394226,5.6063186,1913.9,1913.8,0.1]
[1680695403274,0.002,1913.9,1913.8,0.1]
[1680695403477,10.75,1914.0,1913.9,0.00114573]
[1680695403680,10.752,1914.0,1913.9,1.0254603]
[1680695404174,0.502,1914.0,1913.9,1.0254603]
[1680695404343,0.5,1914.0,1913.9,1.0254603]
[1680695407757,0.5,1914.0,1913.9,1.04698052]
[1680695408272,0.5,1914.0,1913.9,1.0254603]
[1680695412276,0.5,1914.0,1913.9,0.92314573]
[1680695413943,0.5,1914.0,1913.9,0.00114573]
[1680695414357,3.633,1914.0,1913.9,0.00114573]
[1680695414564,6.26728255,1914.0,1913.9,0.00114573]
[1680695414787,6.26928255,1914.0,1913.9,0.00114573]
[1680695423815,12.48721081,1914.0,1913.9,0.00114573]
[1680695424702,12.67007081,1914.0,1913.9,0.00114573]
[1680695425236,12.48721081,1914.0,1913.9,0.00114573]
[1680695425526,12.67007081,1914.0,1913.9,0.00114573]
[1680695427812,12.66774512,1914.0,1913.9,0.00114573]
[1680695428749,12.48488512,1914.0,1913.9,0.00114573]
[1680695429027,6.26695686,1914.0,1913.9,0.00114573]
[1680695431544,0.00272897,1913.9,1913.8,0.1]
[1680695431754,2.63701152,1913.9,1913.8,0.1]
[1680695442866,2.81988152,1913.9,1913.8,0.1]
[1680695443158,2.63701152,1913.9,1913.8,0.1]
[1680695454823,2.63316114,1913.9,1913.8,0.1]
[1680695463753,3.25974469,1913.9,1913.8,0.08]
[1680695463930,3.25974469,1913.9,1913.8,0.07768922]
[1680695467861,2.63316114,1913.9,1913.8,0.07768922]
[1680695472449,0.008,1914.0,1913.8,0.07768922]
[1680695472651,0.002,1914.2,1913.8,1.43998445]
[1680695472890,5.7361,1914.5,1914.1,0.922]
[1680695473050,2.63428255,1914.4,1914.2,0.922]
[1680695473394,0.006,1914.5,1914.2,1.0142]
[1680695473561,0.006,1914.7,1914.2,1.0142]
[1680695473756,2.64028255,1914.7,1914.2,1.0142]
[1680695474382,2.64028255,1914.7,1914.4,0.922]
[1680695475882,2.64028255,1914.7,1914.3,0.919]
[1680695476584,2.63628255,1914.7,1914.3,0.919]
[1680695476790,2.59028255,1914.7,1914.3,1.11692]
[1680695479070,2.59028255,1914.7,1914.3,1.13843572]
[1680695479594,2.59628255,1914.7,1914.3,1.12843572]
[1680695479806,2.59628255,1914.7,1914.4,0.11284357]
[1680695481489,3.141,1914.8,1914.4,0.11284357]
[1680695481696,5.77328255,1914.8,1914.4,1.03484357]
[1680695482028,5.77528255,1914.8,1914.4,1.03484357]
[1680695482597,2.64228255,1914.8,1914.4,1.03484357]
[1680695482794,0.006,1914.8,1914.5,1.02048436]
[1680695483094,0.006,1914.9,1914.5,1.02048436]
[1680695483307,0.008,1915.1,1914.8,0.914]
[1680695483508,0.006,1915.2,1914.9,0.922]
[1680695483673,0.006,1915.2,1915.0,0.0922]
[1680695483873,0.006,1915.2,1914.9,0.922]
[1680695489878,0.006,1915.2,1914.8,1.91151011]
[1680695490596,0.006,1915.2,1914.8,0.98951011]
[1680695492118,0.006,1915.2,1914.8,1.90351011]
[1680695492580,2.64028255,1915.2,1914.8,1.90351011]
[1680695492777,0.26402826,1915.1,1914.8,0.98951011]
[1680695492971,2.90431081,1915.1,1914.8,0.98951011]
[1680695494579,2.90431081,1915.1,1914.8,0.968]
[1680695494580,5.76728255,1915.0,1914.8,0.968]
[1680695494783,0.57672826,1914.9,1914.8,0.968]
[1680695495094,3.21101081,1914.9,1914.5,0.968]
[1680695495426,2.63428255,1914.8,1914.5,0.968]
[1680695495594,0.26342826,1914.7,1914.4,0.008]
[1680695495928,2.89771081,1914.7,1914.3,0.968]
[1680695497485,2.89771081,1914.7,1914.3,1.89]
[1680695497919,2.89771081,1914.7,1914.3,0.922]
[1680695498124,5.5201,1914.8,1914.3,0.922]
[1680695498426,8.15438255,1914.8,1914.2,1.91151684]
[1680695498739,8.15438255,1914.8,1914.3,1.15915168]
[1680695503188,8.15438255,1914.8,1914.4,0.917]
[1680695503412,8.15438255,1914.8,1914.4,1.885]
[1680695503626,8.14508973,1914.8,1914.4,1.885]
[1680695504564,8.14508973,1914.8,1914.4,1.891]
[1680695505591,8.15108973,1914.8,1914.4,1.88288022]
[1680695506289,8.15108973,1914.8,1914.4,2.09028341]
[1680695506639,8.15108973,1914.8,1914.5,1.885]
[1680695506640,0.008,1914.8,1914.5,1.885]
[1680695506791,0.45,1914.6,1914.5,1.885]
[1680695507334,0.45,1914.6,1914.5,3.04537032]
[1680695509622,0.45,1914.6,1914.5,2.07737032]
[1680695509937,0.45,1914.6,1914.5,3.04537032]
[1680695523141,0.45,1914.6,1914.5,2.12837032]
[1680695523569,0.45,1914.6,1914.5,0.968]
[1680695527044,0.45,1914.6,1914.4,0.968]
[1680695527244,0.45,1914.6,1914.3,0.968]
[1680695527659,5.231,1914.4,1914.3,0.968]
[1680695527874,5.233,1914.4,1914.3,0.974]
[1680695528275,5.22961343,1914.4,1914.3,0.968]
[1680695531792,5.12961343,1914.4,1914.3,0.968]
[1680695532700,5.12961343,1914.4,1914.2,0.98951684]
[1680695532902,5.12961343,1914.4,1914.3,0.968]
[1680695533604,5.12961343,1914.4,1914.2,0.98951684]
[1680695533785,5.12961343,1914.4,1914.3,0.968]
[1680695534162,5.12961343,1914.4,1914.2,0.98951684]
[1680695534359,5.12961343,1914.4,1914.3,0.968]
[1680695534808,5.12961343,1914.4,1914.2,0.98951684]
[1680695535111,5.12961343,1914.4,1914.3,0.968]
[1680695535611,5.12961343,1914.4,1914.2,0.968]
[1680695539603,5.12961343,1914.4,1914.2,0.989]
[1680695540610,5.64317477,1914.4,1914.2,0.989]
[1680695542177,5.12961343,1914.4,1914.2,0.989]
[1680695542509,5.12961343,1914.4,1914.2,2.35129523]
[1680695542700,5.12961343,1914.4,1914.2,0.995]
[1680695542901,5.12961343,1914.4,1914.3,0.968]
[1680695543101,5.12961343,1914.4,1914.2,2.35729523]
[1680695543577,5.12961343,1914.4,1914.3,0.968]
[1680695543775,5.12961343,1914.4,1914.3,2.33029523]
[1680695544118,5.12961343,1914.4,1914.3,0.968]
[1680695544415,5.12961343,1914.4,1914.3,2.33029523]
[1680695544619,5.12961343,1914.4,1914.3,0.968]
[1680695548427,5.12961343,1914.4,1914.2,2.35729523]
[1680695548626,5.12961343,1914.4,1914.2,0.021]
[1680695550029,5.13561343,1914.4,1914.2,0.021]
[1680695552683,5.12754827,1914.4,1914.2,0.021]
[1680695552887,5.57754827,1914.4,1914.2,0.021]
[1680695555731,8.21183082,1914.4,1914.2,0.021]
[1680695555922,9.4080339,1914.4,1914.2,0.021]
[1680695556790,9.2252139,1914.4,1914.2,0.021]
[1680695562838,9.4080339,1914.4,1914.2,0.021]
[1680695563041,9.2252139,1914.4,1914.2,0.021]
[1680695563739,2.63428255,1914.3,1914.2,0.021]
[1680695564044,4.07121594,1914.3,1914.0,0.9955191]
[1680695564240,3.88838594,1914.3,1914.2,0.022]
[1680695565540,14.53421594,1914.3,1914.2,0.022]
[1680695565841,14.53621594,1914.3,1913.9,0.006]
[1680695566026,6.50642159,1914.2,1913.9,0.006]
[1680695566233,6.50642159,1914.2,1913.8,0.006]
[1680695566234,2.63428255,1914.1,1913.8,0.006]
[1680695566409,3.28492471,1914.1,1913.8,0.006]
[1680695566604,3.46777471,1914.1,1913.8,0.006]
[1680695567330,3.46777471,1914.1,1913.7,0.974]
[1680695567638,6.41792471,1914.1,1913.7,0.974]
[1680695567849,0.64179247,1914.0,1913.7,0.974]
[1680695568020,3.27607502,1914.0,1913.7,0.974]
[1680695568941,2.63428255,1913.9,1913.7,0.006]
[1680695569144,2.63428255,1913.9,1913.6,2.33629523]
[1680695569338,3.29347605,1913.9,1913.6,1.36829523]
[1680695570709,6.42647605,1913.9,1913.6,0.006]
[1680695570910,6.42847605,1913.9,1913.6,1.36829523]
[1680695571112,6.42847605,1913.9,1913.6,0.006]
[1680695571508,6.42847605,1913.9,1913.5,1.36829523]
[1680695571942,6.42847605,1913.9,1913.5,2.33629523]
[1680695573452,4.69784761,1913.8,1913.5,0.974]
[1680695573663,2.6316388,1913.7,1913.4,0.006]
[1680695573866,5.7646388,1913.7,1913.4,1.36229523]
[1680695574165,6.49978744,1913.7,1913.4,1.36229523]
[1680695574314,6.49978744,1913.7,1913.5,0.021]
[1680695575941,2.6336388,1913.7,1913.5,0.021]
[1680695576145,8.8061,1913.8,1913.5,0.021]
[1680695576342,11.44038255,1913.8,1913.5,0.021]
[1680695580919,0.18289,1913.7,1913.5,0.021]
[1680695581260,2.81717255,1913.7,1913.5,0.021]
[1680695582330,2.63428255,1913.7,1913.5,0.021]
[1680695583270,2.81717255,1913.7,1913.5,0.021]
[1680695583563,3.97949881,1913.7,1913.5,0.021]
[1680695584937,3.79660881,1913.7,1913.5,0.021]
[1680695587537,5.76728255,1913.6,1913.5,0.021]
[1680695587742,6.87418255,1913.6,1913.5,0.021]
[1680695587940,8.26411143,1913.6,1913.1,0.106]
[1680695588569,8.26411143,1913.6,1913.0,1.074]
[1680695589073,8.26411143,1913.6,1913.0,1.068]
[1680695590887,8.08121143,1913.6,1913.0,1.068]
[1680695592943,1.0,1913.4,1913.0,1.068]
[1680695593261,3.63428255,1913.4,1913.2,0.022]
[1680695593467,2.63428255,1913.4,1913.2,0.022]
[1680695593853,2.81720255,1913.4,1913.2,0.022]
[1680695594177,3.94749281,1913.4,1913.0,1.04]
[1680695594354,3.76457281,1913.4,1913.0,1.04]
[1680695597562,2.64028255,1913.4,1913.0,1.04]
[1680695599584,1.46683,1913.1,1913.0,0.072]
[1680695599782,4.10711255,1913.1,1913.0,0.072]
[1680695599963,9.86181255,1913.1,1913.0,0.072]
[1680695600159,10.25209381,1913.1,1913.0,0.072]
[1680695601279,18.87609381,1913.1,1913.0,0.072]
[1680695601447,20.02709381,1913.1,1913.0,0.072]
[1680695601648,13.01920381,1913.1,1913.0,0.072]
[1680695606741,12.96320381,1913.1,1913.0,0.072]
[1680695614313,0.002,1913.1,1913.0,0.09353034]
[1680695614517,0.002,1913.4,1913.0,0.09353034]
[1680695614742,2.63428255,1913.4,1913.0,0.09353034]
[1680695614917,2.63428255,1913.4,1913.0,1.06153034]
[1680695615251,0.45,1913.2,1913.0,1.27698337]
[1680695618953,0.45,1913.2,1913.0,1.28298337]
[1680695625939,0.45,1913.2,1913.0,2.36798337]
[1680695626277,0.45,1913.2,1913.1,2.061]
[1680695626482,0.45,1913.2,1913.1,2.29859834]
[1680695626682,0.45,1913.2,1913.1,2.30459834]
[1680695627345,0.45,1913.2,1913.1,3.66689357]
[1680695629280,0.44678437,1913.2,1913.1,3.66689357]
[1680695629455,0.44678437,1913.2,1913.1,3.66089357]
[1680695638095,0.44678437,1913.2,1913.1,1.20559834]
[1680695638396,0.44678437,1913.2,1913.1,0.968]
[1680695640289,0.44678437,1913.2,1913.0,1.06153034]
[1680695640886,0.44678437,1913.2,1913.0,1.04]
[1680695641259,0.50975581,1913.2,1913.0,1.04]
[1680695642283,3.14403836,1913.2,1913.0,1.04]
[1680695642448,6.76728255,1913.1,1913.0,1.04]
[1680695642650,6.76928255,1913.1,1913.0,0.072]
[1680695642898,7.49718639,1913.1,1913.0,0.072]
[1680695643190,7.50318639,1913.1,1913.0,0.072]
[1680695643363,7.49718639,1913.1,1913.0,0.072]
[1680695643562,7.49918639,1913.1,1913.0,0.072]
[1680695643761,7.50318639,1913.1,1913.0,0.072]
[1680695645776,6.50318639,1913.1,1913.0,0.072]
[1680695646300,3.37018639,1913.1,1913.0,0.072]
[1680695646449,3.36218639,1913.1,1913.0,0.072]
[1680695647355,0.72790384,1913.1,1913.0,0.072]
[1680695651564,0.72571799,1913.1,1913.0,0.072]
[1680695652437,6.00718437,1913.2,1913.0,0.072]
[1680695658236,0.44878437,1913.2,1913.0,0.072]
[1680695658540,0.44678437,1913.2,1913.0,0.072]
[1680695667949,0.62972437,1913.2,1913.0,0.072]
[1680695668256,0.06297244,1913.1,1913.0,0.072]
[1680695669356,0.44678437,1913.2,1913.0,0.072]
[1680695674443,3.08106692,1913.2,1913.0,0.072]
[1680695675173,3.07816279,1913.2,1913.0,0.072]
[1680695686137,3.07816279,1913.2,1913.0,1.43429523]
[1680695686345,3.07816279,1913.2,1913.0,0.072]
[1680695686644,4.81999907,1913.2,1913.0,0.072]
[1680695687004,4.81999907,1913.2,1913.0,1.43429523]
[1680695693319,3.07816279,1913.2,1913.0,1.43429523]
[1680695694753,3.07816279,1913.2,1913.0,0.072]
[1680695695547,3.074856,1913.2,1913.0,0.072]
[1680695697342,0.44057345,1913.2,1913.0,0.072]
[1680695697541,0.44057345,1913.2,1913.0,2.40229523]
[1680695697745,0.44057345,1913.2,1913.1,0.24022952]
[1680695697951,0.44057345,1913.2,1913.1,3.49152475]
[1680695698266,0.44057345,1913.2,1913.1,2.52352475]
[1680695698616,0.44057345,1913.2,1913.1,3.49152475]
[1680695699230,0.44057345,1913.2,1913.1,2.12922952]
[1680695699458,0.44057345,1913.2,1913.1,3.49780381]
[1680695700297,0.44057345,1913.2,1913.1,4.44233303]
[1680695700595,0.44057345,1913.2,1913.1,4.44833303]
[1680695701099,0.44057345,1913.2,1913.1,4.43841964]
[1680695701453,0.44057345,1913.2,1913.1,4.4382773]
[1680695702360,0.44057345,1913.2,1913.1,3.06984535]
[1680695703713,0.44057345,1913.2,1913.1,2.14884535]
[1680695703888,0.44057345,1913.2,1913.1,0.98952922]
[1680695704093,0.44057345,1913.2,1913.1,2.35765025]
[1680695704625,0.44057345,1913.2,1913.1,1.38965025]
[1680695705826,3.074856,1913.2,1913.0,2.40812103]
[1680695706117,3.3823416,1913.2,1913.0,1.04]
[1680695706415,3.3823416,1913.2,1913.0,0.072]
[1680695706582,3.3823416,1913.2,1913.0,1.04]
[1680695706778,3.3823416,1913.2,1913.0,0.072]
[1680695706984,0.33823416,1913.1,1913.0,0.072]
[1680695707194,3.074856,1913.2,1913.0,0.072]
[1680695707535,2.63428255,1913.1,1913.0,0.072]
[1680695707960,5.76728255,1913.1,1913.0,0.072]
[1680695708123,5.77528255,1913.1,1913.0,0.072]
[1680695716499,5.95822255,1913.1,1913.0,0.072]
[1680695716697,6.50696215,1913.1,1913.0,0.072]
[1680695716900,13.70079215,1913.1,1913.0,0.072]
[1680695717218,14.61679215,1913.1,1913.0,0.072]
[1680695717423,19.61990215,1913.1,1913.0,0.072]
[1680695717575,11.87596215,1913.1,1913.0,0.072]
[1680695720374,11.14428255,1913.1,1913.0,0.072]
[1680695723909,11.13460496,1913.1,1913.0,0.072]
[1680695734528,11.57517841,1913.1,1913.0,0.072]
[1680695741425,12.12400841,1913.1,1913.0,0.072]
[1680695741830,11.75811841,1913.1,1913.0,0.072]
[1680695742028,22.44953825,1913.1,1913.0,0.0001]
[1680695742231,3.133,1912.9,1912.4,0.106]
[1680695742466,0.18298,1912.7,1912.4,0.106]
[1680695742840,2.63428255,1912.8,1912.4,0.106]
[1680695743062,2.81726255,1912.8,1912.4,0.106]
[1680695743235,4.37420281,1912.8,1912.4,0.106]
[1680695744265,2.63428255,1912.8,1912.4,0.106]
[1680695744564,12.56917,1912.9,1912.5,1.891]
[1680695744565,17.726,1912.9,1912.5,1.891]
[1680695744765,0.002,1912.9,1912.5,1.897]
[1680695744968,3.57357345,1913.1,1912.6,2.0787]
[1680695745175,2.63428255,1913.0,1912.6,2.0847]
[1680695745734,2.63428255,1913.0,1912.6,2.10623484]
[1680695753274,3.57557345,1913.1,1912.6,2.10623484]
[1680695753581,6.207856,1913.1,1912.6,2.10623484]
[1680695753797,6.209856,1913.1,1912.6,2.10623484]
[1680695753956,6.209856,1913.1,1912.6,3.47435587]
[1680695754578,6.209856,1913.1,1912.6,2.10623484]
[1680695754780,7.3648216,1913.1,1912.6,2.10623484]
[1680695755174,7.3648216,1913.1,1912.6,1.91653484]
[1680695755478,7.3648216,1913.1,1912.6,3.28465587]
[1680695755679,7.3648216,1913.1,1912.6,1.91653484]
[1680695756284,7.3648216,1913.1,1912.6,3.28465587]
[1680695756584,7.3648216,1913.1,1912.6,1.91653484]
[1680695759796,0.67036973,1913.0,1912.6,1.91653484]
[1680695760010,0.18296,1913.0,1912.6,0.99553484]
[1680695760879,2.81725255,1912.9,1912.6,0.99553484]
[1680695761081,2.63428255,1912.9,1912.6,0.006]
[1680695761287,0.28172526,1912.8,1912.6,0.006]
[1680695761584,2.91600781,1912.8,1912.5,0.006]
[1680695762084,3.09897781,1912.8,1912.5,0.006]
[1680695762278,0.29160078,1912.7,1912.5,0.006]
[1680695763260,0.29160078,1912.7,1912.4,0.106]
[1680695763261,2.63428255,1912.6,1912.4,0.106]
[1680695763478,0.26342826,1912.5,1912.4,0.106]
[1680695766276,2.63428255,1912.6,1912.4,0.106]
[1680695771088,3.42660078,1912.7,1912.4,0.106]
[1680695771252,5.76728255,1912.7,1912.4,0.106]
[1680695771457,5.76928255,1912.7,1912.4,0.106]
[1680695773506,0.002,1912.7,1912.4,0.106]
[1680695773693,0.18298,1912.8,1912.4,0.3155]
[1680695773889,0.18298,1912.8,1912.4,0.106]
[1680695774321,5.5808,1912.9,1912.4,0.106]
[1680695774619,0.002,1912.9,1912.7,0.921]
[1680695774819,14.9881,1913.0,1912.9,0.00067502]
[1680695775020,5.218,1913.0,1912.9,0.00067502]
[1680695777831,3.57557345,1913.1,1912.9,0.00067502]
[1680695777832,0.44257345,1913.1,1912.9,0.00067502]
[1680695778001,0.44257345,1913.1,1913.0,1.84]
[1680695778002,0.44057345,1913.1,1913.0,1.84]
[1680695778193,0.44057345,1913.1,1913.0,2.0240675]
[1680695778521,0.44057345,1913.1,1913.0,2.9920675]
[1680695778724,0.44057345,1913.1,1913.0,2.9980675]
[1680695779430,0.44057345,1913.1,1913.0,7.36618853]
[1680695779591,0.44057345,1913.1,1913.0,6.0000675]
[1680695780031,0.44057345,1913.1,1913.0,7.36818853]
[1680695780736,0.44057345,1913.1,1913.0,12.85918853]
[1680695780938,0.44057345,1913.1,1913.0,13.08918853]
[1680695781395,0.44057345,1913.1,1913.0,11.7210675]
[1680695782206,0.44057345,1913.1,1913.0,12.0650675]
[1680695782809,0.44057345,1913.1,1913.0,13.43318853]
[1680695783506,0.44057345,1913.1,1913.0,12.0650675]
[1680695786044,0.44057345,1913.1,1913.0,5.2520675]
[1680695791929,0.44057345,1913.1,1913.0,5.3060675]
[1680695797931,0.43783707,1913.1,1913.0,5.3040675]
[1680695798137,0.43783707,1913.1,1913.0,5.3000675]
[1680695802793,17.54711962,1913.1,1912.9,0.00067502]
[1680695802929,17.54711962,1913.1,1912.8,0.006]
[1680695802930,17.85728255,1913.0,1912.6,0.006]
[1680695803129,4.225,1912.7,1912.5,0.002]
[1680695803385,3.133,1912.7,1912.5,0.002]
[1680695803576,0.3133,1912.6,1912.5,0.002]
[1680695804968,0.49629,1912.6,1912.5,0.002]
[1680695805158,0.18299,1912.6,1912.5,0.002]
[1680695811166,0.18299,1912.7,1912.5,0.002]
[1680695811381,2.81727255,1912.7,1912.5,0.002]
[1680695811780,0.18299,1912.6,1912.5,0.002]
[1680695813983,2.81727255,1912.7,1912.5,0.002]
[1680695814292,0.44641826,1912.6,1912.5,0.002]
[1680695814499,0.26342826,1912.6,1912.5,0.002]
[1680695814860,0.44641826,1912.6,1912.5,0.002]
[1680695817700,0.26342826,1912.6,1912.5,0.002]
[1680695817899,0.006,1912.7,1912.5,0.002]
[1680695818201,5.76348,1912.8,1912.5,0.002]
[1680695818365,0.576348,1912.7,1912.5,0.002]
[1680695820787,0.576348,1912.7,1912.4,0.1]
[1680695822802,0.576348,1912.7,1912.4,0.05]
[1680695826322,0.759338,1912.7,1912.4,0.05]
[1680695828305,0.576348,1912.7,1912.4,0.05]
[1680695828512,0.0576348,1912.6,1912.4,0.05]
[1680695830612,0.43783707,1913.1,1912.7,2.2]
[1680695830797,0.43783707,1913.1,1912.9,2.2]
[1680695830983,0.43783707,1913.1,1913.0,5.491]
[1680695830984,0.01336106,1913.1,1913.0,5.491]
[1680695831304,0.006,1914.1,1913.0,4.21145545]
[1680695831509,0.006,1914.1,1913.1,6.432601]
[1680695831704,0.006,1914.1,1913.2,1.092]
[1680695831910,0.006,1914.1,1913.2,7.52769349]
[1680695832089,0.006,1914.1,1913.5,0.972]
[1680695832294,0.006,1914.1,1913.5,1.0692]
[1680695832518,0.006,1914.1,1913.6,0.968]
[1680695837925,0.006,1914.2,1913.8,1.092]
[1680695838114,0.006,1914.2,1913.9,0.828]
[1680695838312,0.006,1914.2,1913.9,1.988]
[1680695838538,0.006,1914.2,1914.0,0.968]
[1680695839219,0.006,1914.2,1914.0,1.897]
[1680695839625,0.006,1914.2,1914.1,0.968]
[1680695843643,0.006,1914.2,1914.0,0.931]
[1680695843935,0.006,1914.3,1914.0,0.931]
[1680695844136,3.57483738,1914.3,1914.0,0.931]
[1680695844516,4.57483738,1914.3,1914.0,0.931]
[1680695844919,2.63428255,1914.2,1914.0,0.931]
[1680695845115,3.64028255,1914.2,1914.0,0.931]
[1680695845301,4.62046629,1914.2,1914.0,0.931]
[1680695847328,3.62046629,1914.2,1914.0,0.931]
[1680695852938,3.61186944,1914.2,1914.0,0.931]
[1680695853568,3.61786944,1914.2,1913.6,3.02352359]
[1680695853722,3.61786944,1914.2,1914.0,0.505]
[1680695853918,0.36178694,1914.1,1914.0,0.505]
[1680695854123,0.36778694,1914.1,1914.0,0.505]
[1680695854554,3.00206949,1914.1,1914.0,0.505]
[1680695854762,6.13506949,1914.1,1914.0,0.505]
[1680695854976,6.13706949,1914.1,1914.0,0.505]
[1680695860970,6.36706949,1914.1,1914.0,0.505]
[1680695867751,6.26106949,1914.1,1914.0,0.505]
[1680695868994,12.83706949,1914.1,1914.0,0.505]
[1680695881732,18.06106949,1914.1,1914.0,0.505]
[1680695882487,12.57006949,1914.1,1914.0,0.505]
[1680695882726,11.48506949,1914.1,1914.0,0.505]
[1680695884187,7.86028255,1914.1,1914.0,0.505]
[1680695887749,10.99328255,1914.1,1914.0,0.505]
[1680695888416,11.22328255,1914.1,1914.0,0.505]
[1680695889353,12.13026856,1914.1,1914.0,0.505]
[1680695889653,11.22328255,1914.1,1914.0,0.505]
[1680695890317,13.04079123,1914.1,1914.0,0.505]
[1680695890813,12.81079123,1914.1,1914.0,0.505]
[1680695891021,10.99328255,1914.1,1914.0,0.505]
[1680695897340,11.90025279,1914.1,1914.0,0.505]
[1680695897656,12.44625708,1914.1,1914.0,0.505]
[1680695901464,10.99328255,1914.1,1914.0,0.505]
[1680695902039,10.99328255,1914.1,1914.0,0.5027529]
[1680695902252,12.14802346,1914.1,1914.0,0.5027529]
[1680695906168,5.226,1914.1,1914.0,0.5027529]
[1680695908841,5.226,1914.1,1914.0,2.0787529]
[1680695909048,5.226,1914.1,1914.0,3.1707529]
[1680695909352,5.226,1914.1,1914.0,3.1767529]
[1680695914176,5.226,1914.1,1914.0,6.1767529]
[1680695914384,5.226,1914.1,1914.0,6.79878021]
[1680695922664,5.226,1914.1,1914.0,5.70678021]
[1680695923265,5.226,1914.1,1914.0,3.9947529]
[1680695923456,5.226,1914.1,1914.0,0.9927529]
[1680695924491,5.22468338,1914.1,1914.0,0.9867529]
[1680695928056,5.22157332,1914.1,1914.0,0.9867529]
[1680695930058,5.22157332,1914.1,1914.0,3.9867529]
[1680695930258,5.22157332,1914.1,1914.0,5.74096553]
[1680695930459,5.22157332,1914.1,1914.0,6.83496553]
[1680695931371,5.22157332,1914.1,1914.0,5.75096553]
[1680695931593,5.22157332,1914.1,1914.0,3.9947529]
[1680695931790,5.22157332,1914.1,1914.0,3.9927529]
[1680695943764,5.17157332,1914.1,1914.0,3.9927529]
[1680695945280,5.17757332,1914.1,1914.0,0.7957729]
[1680695945483,9.2466132,1914.1,1913.7,0.484]
[1680695945685,8.3236132,1914.1,1914.0,0.256]
[1680695945874,12.5624632,1914.1,1914.0,0.256]
[1680695946296,1.0,1914.0,1913.5,0.49]
[1680695946504,5.76728255,1913.9,1913.5,0.484]
[1680695946702,6.69028255,1913.9,1913.5,0.484]
[1680695946974,6.69028255,1913.9,1913.6,0.484]
[1680695947194,0.66902825,1913.8,1913.6,0.484]
[1680695947470,3.3033108,1913.8,1913.4,0.484]
[1680695947675,2.63428255,1913.8,1913.4,0.484]
[1680695949073,2.63428255,1913.8,1913.4,0.242]
[1680695949328,2.63428255,1913.8,1913.5,0.242]
[1680695949472,2.63428255,1913.8,1913.4,0.242]